bitfinex/quotes_BTCUSD_20241021
["timestamp","ask_amount","ask_price","bid_price","bid_amount"]
[1729518450471,0.30556515,67570.0,67569.0,0.001]
[1729518450695,0.38486515,67570.0,67569.0,0.001]
[1729518450952,0.38986515,67570.0,67569.0,0.005]
[1729518451210,0.49986515,67570.0,67569.0,0.005]
[1729518451459,0.49986515,67570.0,67569.0,0.001]
[1729518452151,0.25997,67563.0,67562.0,0.00041642]
[1729518452381,0.26091915,67563.0,67562.0,0.00041642]
[1729518452841,0.40892915,67563.0,67562.0,0.00041642]
[1729518453313,0.51302297,67563.0,67562.0,0.00041642]
[1729518453580,0.51902297,67563.0,67562.0,0.00041642]
[1729518454667,0.41792915,67563.0,67562.0,0.00041642]
[1729518455136,0.62572915,67563.0,67562.0,0.00041642]
[1729518455800,0.60672915,67563.0,67562.0,0.00041642]
[1729518456027,0.64472915,67563.0,67562.0,0.00041642]
[1729518456243,0.62072915,67563.0,67562.0,0.00041642]
[1729518456470,0.72900297,67563.0,67562.0,0.00041642]
[1729518456698,0.75300297,67563.0,67562.0,0.00041642]
[1729518456958,0.74800297,67563.0,67562.0,0.00041642]
[1729518457187,0.75300297,67563.0,67562.0,0.00041642]
[1729518457444,0.76700297,67563.0,67562.0,0.00041642]
[1729518457687,0.74300297,67563.0,67562.0,0.00041642]
[1729518457937,0.75300297,67563.0,67562.0,0.00041642]
[1729518458173,0.73900297,67563.0,67562.0,0.00041642]
[1729518458401,0.75300297,67563.0,67562.0,0.00041642]
[1729518458643,0.63072915,67563.0,67562.0,0.00041642]
[1729518458866,0.61672915,67563.0,67562.0,0.00041642]
[1729518459113,0.63072915,67563.0,67562.0,0.00041642]
[1729518459555,0.63272915,67563.0,67562.0,0.00041642]
[1729518459782,0.62072915,67563.0,67562.0,0.00041642]
[1729518460005,0.75111632,67563.0,67562.0,0.00041642]
[1729518460234,0.62972915,67563.0,67562.0,0.00041642]
[1729518460443,0.62072915,67563.0,67562.0,0.00041642]
[1729518460889,0.63472915,67563.0,67562.0,0.00041642]
[1729518461392,0.46771915,67563.0,67562.0,0.00041642]
[1729518461634,0.61572915,67563.0,67562.0,0.00041642]
[1729518461847,0.62972915,67563.0,67562.0,0.00041642]
[1729518462068,0.46771915,67563.0,67562.0,0.00041641]
[1729518462285,0.45371915,67563.0,67562.0,0.00041641]
[1729518462495,0.48171915,67563.0,67562.0,0.00041641]
[1729518462708,0.61372915,67563.0,67562.0,0.00041641]
[1729518462936,0.45171915,67563.0,67562.0,0.00041641]
[1729518463164,0.014,67563.0,67562.0,0.14842841]
[1729518463397,0.028,67563.0,67562.0,0.14842841]
[1729518464054,0.028,67563.0,67562.0,0.22247795]
[1729518464276,0.028,67563.0,67562.0,0.14842841]
[1729518465157,0.001652,67570.0,67569.0,0.147996]
[1729518465376,0.001652,67570.0,67569.0,0.14841241]
[1729518466783,0.001652,67570.0,67569.0,0.14941241]
[1729518467018,0.003652,67570.0,67569.0,0.14941241]
[1729518467508,0.001652,67570.0,67569.0,0.14941241]
[1729518468437,0.001652,67570.0,67569.0,0.14841241]
[1729518468666,0.001652,67570.0,67569.0,0.14941241]
[1729518468896,0.001652,67570.0,67569.0,0.1504124]
[1729518469176,0.001652,67570.0,67569.0,0.1494124]
[1729518469393,0.001652,67570.0,67569.0,0.1504124]
[1729518469836,0.001652,67570.0,67569.0,0.1514124]
[1729518470285,0.001652,67570.0,67569.0,0.1504124]
[1729518470514,0.001652,67570.0,67569.0,0.0024164]
[1729518470986,0.001652,67570.0,67569.0,0.1504124]
[1729518471697,0.001652,67570.0,67569.0,0.1494124]
[1729518471927,0.001652,67570.0,67569.0,0.1504124]
[1729518472390,0.001652,67570.0,67569.0,0.1494124]
[1729518472622,0.001652,67570.0,67569.0,0.1504124]
[1729518472862,0.001652,67570.0,67569.0,0.0024164]
[1729518473098,0.001652,67570.0,67569.0,0.1504124]
[1729518474568,0.001652,67570.0,67569.0,0.1494124]
[1729518474794,0.001652,67570.0,67569.0,0.1484124]
[1729518475017,0.004652,67570.0,67569.0,0.1494124]
[1729518475246,0.004652,67570.0,67569.0,0.1484124]
[1729518475475,0.001652,67570.0,67569.0,0.1484124]
[1729518475702,0.003652,67570.0,67569.0,0.1484124]
[1729518475929,0.008652,67570.0,67569.0,0.1484124]
[1729518476640,0.010652,67570.0,67569.0,0.1484124]
[1729518476925,0.010652,67570.0,67569.0,0.22245554]
[1729518476926,0.008652,67570.0,67569.0,0.22245554]
[1729518477166,0.001652,67575.0,67574.0,0.180985]
[1729518477396,0.22113457,67584.0,67583.0,0.147966]
[1729518477627,0.22113457,67584.0,67583.0,0.14838239]
[1729518477851,0.22113457,67584.0,67583.0,0.22340983]
[1729518478072,0.22113457,67591.0,67590.0,0.14795]
[1729518478300,0.22113457,67591.0,67590.0,0.14836639]
[1729518478520,0.00496,67595.0,67594.0,0.147942]
[1729518478748,0.00496,67595.0,67594.0,0.14835839]
[1729518478975,0.00496,67595.0,67594.0,0.44423839]
[1729518479650,0.00496,67595.0,67594.0,0.44423838]
[1729518479878,0.00496,67597.0,67596.0,0.147937]
[1729518480114,0.006612,67599.0,67598.0,0.147933]
[1729518480344,0.006612,67599.0,67598.0,0.14834938]
[1729518481068,0.006612,67599.0,67598.0,0.14834937]
[1729518481515,0.001652,67599.0,67598.0,0.14834937]
[1729518481761,0.006612,67599.0,67598.0,0.14834937]
[1729518481999,0.020612,67599.0,67598.0,0.14934937]
[1729518482218,0.036612,67599.0,67598.0,0.00141637]
[1729518482430,0.008612,67599.0,67598.0,0.00041637]
[1729518482659,0.22113457,67604.0,67598.0,0.00041637]
[1729518482882,0.003,67599.0,67598.0,0.14834937]
[1729518483100,0.003,67599.0,67598.0,0.00041637]
[1729518483318,0.003,67599.0,67598.0,0.14834937]
[1729518484017,0.15195915,67599.0,67598.0,0.00041637]
[1729518484238,0.15195915,67599.0,67598.0,0.14834937]
[1729518484467,0.003,67599.0,67598.0,0.14834936]
[1729518484747,0.22113457,67604.0,67598.0,0.29628236]
[1729518484984,0.22113457,67604.0,67601.0,0.147926]
[1729518484985,0.38305457,67604.0,67601.0,0.147926]
[1729518485203,0.23513457,67604.0,67602.0,0.295849]
[1729518485420,0.014,67604.0,67603.0,0.147922]
[1729518485636,0.147918,67605.0,67602.0,0.147922]
[1729518485873,0.29687715,67605.0,67602.0,0.14833835]
[1729518486072,0.14895915,67605.0,67602.0,0.00041635]
[1729518486510,0.077512,67607.0,67606.0,0.147915]
[1729518486758,0.001676,67612.0,67611.0,0.147904]
[1729518486992,0.22113457,67626.0,67604.0,0.29584]
[1729518487251,0.22113457,67619.0,67618.0,0.147889]
[1729518487909,0.22113457,67626.0,67606.0,0.005]
[1729518488119,0.22113457,67626.0,67625.0,0.147874]
[1729518488603,0.1999,67628.0,67622.0,0.295758]
[1729518488835,0.014,67619.0,67617.0,0.295782]
[1729518489058,0.014,67619.0,67618.0,0.147889]
[1729518489294,0.22113457,67626.0,67615.0,0.295788]
[1729518489519,0.23513457,67626.0,67616.0,0.0295788]
[1729518489738,0.23913457,67626.0,67616.0,0.0295788]
[1729518489979,0.018,67626.0,67610.0,0.005]
[1729518490204,0.23913457,67626.0,67625.0,0.147874]
[1729518490447,0.018,67626.0,67625.0,0.147874]
[1729518490676,0.008,67626.0,67625.0,0.147874]
[1729518490928,0.004,67626.0,67625.0,0.147874]
[1729518491190,0.22113457,67627.0,67616.0,0.295785]
[1729518491445,0.37109372,67626.0,67615.0,0.005]
[1729518491702,0.148887,67619.0,67617.0,0.003]
[1729518491962,0.148887,67619.0,67614.0,0.147898]
[1729518491963,0.295768,67621.0,67614.0,0.147897]
[1729518492201,0.22113457,67625.0,67614.0,0.147897]
[1729518492520,0.22113457,67625.0,67616.0,0.147892]
[1729518492521,0.14895915,67620.0,67616.0,0.147892]
[1729518492711,0.14895915,67620.0,67611.0,0.295809]
[1729518492965,0.147888,67619.0,67615.0,0.003]
[1729518493188,0.147888,67619.0,67611.0,0.295809]
[1729518493189,0.0812,67616.0,67611.0,0.0004163]
[1729518493475,0.257902,67612.0,67611.0,0.00041629]
[1729518493735,0.548782,67601.0,67600.0,0.22113457]
[1729518493957,0.69774115,67601.0,67600.0,0.22113457]
[1729518494179,0.147928,67600.0,67588.0,0.22113457]
[1729518494427,0.25395915,67601.0,67589.0,0.147952]
[1729518494428,0.295866,67598.0,67589.0,0.147952]
[1729518494695,0.1,67601.0,67589.0,0.22113457]
[1729518494939,0.37009372,67600.0,67581.0,0.22113457]
[1729518495178,0.37009372,67600.0,67599.0,0.147931]
[1729518495624,0.14895915,67600.0,67599.0,0.147931]
[1729518495847,0.14895915,67600.0,67582.0,0.295936]
[1729518496337,0.22113457,67603.0,67602.0,0.147924]
[1729518496822,0.36904257,67610.0,67592.0,0.295893]
[1729518496823,0.22113457,67610.0,67592.0,0.295893]
[1729518497056,0.22113457,67610.0,67603.0,0.147921]
[1729518497289,0.22113457,67610.0,67604.0,0.147918]
[1729518497290,0.14791,67609.0,67604.0,0.147918]
[1729518497533,0.14791,67609.0,67593.0,0.0306893]
[1729518497534,0.14895915,67609.0,67593.0,0.0306893]
[1729518497793,0.21830852,67609.0,67585.0,0.295919]
[1729518498042,0.014,67600.0,67599.0,0.001]
[1729518498289,0.014,67600.0,67599.0,0.148931]
[1729518498756,0.147913,67607.0,67602.0,0.147923]
[1729518498985,0.22113457,67610.0,67590.0,0.005]
[1729518499226,0.028,67609.0,67608.0,0.147909]
[1729518499467,0.24913457,67609.0,67608.0,0.147909]
[1729518499710,0.028,67609.0,67608.0,0.147909]
[1729518500854,0.014,67609.0,67608.0,0.147909]
[1729518501108,0.22113457,67617.0,67608.0,0.15395915]
[1729518501347,0.22113457,67617.0,67605.0,0.295836]
[1729518501348,0.22113457,67617.0,67616.0,0.147893]
[1729518501603,0.22113457,67617.0,67614.0,0.295796]
[1729518501604,0.37009372,67617.0,67614.0,0.295796]
[1729518501848,0.14895915,67617.0,67616.0,0.147893]
[1729518502079,0.22113457,67625.0,67621.0,0.147881]
[1729518502292,0.001,67609.0,67608.0,0.017]
[1729518502511,0.31386231,67633.0,67608.0,0.02476603]
[1729518502732,0.22113457,67623.0,67622.0,0.14788]
[1729518502957,0.22113457,67632.0,67630.0,0.147863]
[1729518503465,0.001676,67638.0,67630.0,0.147863]
[1729518504409,0.001676,67638.0,67630.0,0.30182215]
[1729518504634,0.015676,67631.0,67630.0,0.31182215]
[1729518504848,0.029676,67631.0,67630.0,0.31282215]
[1729518505061,0.001676,67631.0,67630.0,0.43378683]
[1729518505294,0.007676,67631.0,67630.0,0.43378683]
[1729518505731,0.007676,67631.0,67630.0,0.40414683]
[1729518505955,0.004676,67631.0,67630.0,0.40414683]
[1729518506183,0.005676,67631.0,67630.0,0.40614683]
[1729518506400,0.005676,67631.0,67630.0,0.31382215]
[1729518507337,0.001676,67631.0,67630.0,0.31182215]
[1729518507550,0.002676,67631.0,67630.0,0.32482215]
[1729518507771,0.003676,67631.0,67630.0,0.32682215]
[1729518508016,0.002676,67631.0,67630.0,0.149863]
[1729518508233,0.002676,67631.0,67630.0,0.165863]
[1729518508658,0.00320438,67631.0,67630.0,0.39855495]
[1729518509095,0.00120438,67631.0,67630.0,0.38855495]
[1729518509542,0.00220438,67631.0,67630.0,0.38555495]
[1729518509756,0.00220438,67631.0,67630.0,0.31382215]
[1729518510443,0.00320438,67631.0,67630.0,0.32682215]
[1729518510664,0.00120438,67631.0,67630.0,0.31182215]
[1729518511131,0.001676,67638.0,67630.0,0.31182215]
[1729518511132,0.001676,67638.0,67637.0,0.157848]
[1729518511355,0.001676,67638.0,67637.0,0.31380715]
[1729518511593,0.001676,67638.0,67637.0,0.30180715]
[1729518511819,0.001676,67638.0,67637.0,0.147848]
[1729518512505,0.001676,67638.0,67634.0,0.295705]
[1729518512725,0.001676,67638.0,67630.0,0.015]
[1729518512726,0.147861,67631.0,67630.0,0.015]
[1729518512967,0.48402015,67631.0,67630.0,0.015]
[1729518513193,0.66749307,67631.0,67630.0,0.015]
[1729518513421,0.66749307,67631.0,67608.0,0.22113457]
[1729518513422,0.11,67622.0,67608.0,0.22113457]
[1729518513643,0.295783,67617.0,67615.0,0.22113457]
[1729518513862,0.147922,67603.0,67601.0,0.22113457]
[1729518514087,0.34355915,67603.0,67601.0,0.22113457]
[1729518514346,0.1946,67603.0,67602.0,0.14875]
[1729518515255,0.2086,67603.0,67602.0,0.14975]
[1729518515694,0.35755915,67603.0,67602.0,0.001826]
[1729518516351,0.014,67603.0,67602.0,0.14975]
[1729518516852,0.014,67603.0,67602.0,0.001826]
[1729518517079,0.31088115,67603.0,67602.0,0.001826]
[1729518517298,0.32488115,67603.0,67602.0,0.001826]
[1729518517514,0.17695915,67603.0,67602.0,0.001826]
[1729518517731,0.028,67603.0,67602.0,0.14975]
[1729518517946,0.028,67603.0,67602.0,0.001826]
[1729518518161,0.028,67603.0,67602.0,0.2091875]
[1729518518379,0.028,67603.0,67602.0,0.14975]
[1729518519791,0.014,67603.0,67602.0,0.14875]
[1729518520038,0.22113457,67612.0,67602.0,0.14875]
[1729518520039,0.22113457,67612.0,67611.0,0.147904]
[1729518520486,0.22113457,67612.0,67606.0,0.295828]
[1729518520487,0.22113457,67623.0,67620.0,0.147885]
[1729518520931,0.1907,67624.0,67620.0,0.147885]
[1729518521385,0.1907,67624.0,67607.0,0.22113457]
[1729518521386,0.04331568,67626.0,67608.0,0.005]
[1729518521605,0.22113457,67623.0,67610.0,0.005]
[1729518521847,0.22113457,67623.0,67622.0,0.14788]
[1729518522095,0.04331568,67629.0,67623.0,0.295753]
[1729518522375,0.0433744,67628.0,67613.0,0.295801]
[1729518522587,0.0433744,67628.0,67615.0,0.22113457]
[1729518522811,0.0433744,67628.0,67627.0,0.147869]
[1729518523272,0.04338308,67631.0,67627.0,0.295739]
[1729518523489,0.29451765,67632.0,67631.0,0.147861]
[1729518523937,0.07338308,67632.0,67631.0,0.147861]
[1729518524848,0.03,67632.0,67631.0,0.2219937]
[1729518525298,0.031,67632.0,67631.0,0.2219937]
[1729518525519,0.03,67632.0,67631.0,0.147861]
[1729518525755,0.03,67632.0,67631.0,0.29682015]
[1729518526019,0.03,67632.0,67631.0,0.32982015]
[1729518526232,0.001676,67638.0,67637.0,0.152848]
[1729518526446,0.001676,67638.0,67637.0,0.30680715]
[1729518527669,0.002676,67638.0,67637.0,0.30880715]
[1729518527940,0.001676,67638.0,67637.0,0.30680715]
[1729518528173,0.003676,67638.0,67637.0,0.46995532]
[1729518528409,0.003676,67638.0,67637.0,0.154848]
[1729518528640,0.151521,67638.0,67637.0,0.007]
[1729518528897,0.004676,67638.0,67637.0,0.009]
[1729518529129,0.04804174,67638.0,67637.0,0.009]
[1729518529352,0.04704174,67638.0,67637.0,0.002]
[1729518529584,0.003676,67638.0,67637.0,0.149848]
[1729518529823,0.06972419,67638.0,67637.0,0.009]
[1729518530071,0.06772419,67638.0,67637.0,0.007]
[1729518530317,0.06672419,67638.0,67637.0,0.147848]
[1729518530545,0.08172419,67638.0,67637.0,0.150848]
[1729518531003,0.017676,67638.0,67637.0,0.151848]
[1729518531274,0.00149804,67638.0,67637.0,0.147848]
[1729518531498,0.04788231,67638.0,67637.0,0.147848]
[1729518531745,0.00549804,67638.0,67637.0,0.147848]
[1729518532004,0.00449804,67638.0,67637.0,0.30680715]
[1729518532734,0.00449804,67638.0,67637.0,0.33480715]
[1729518532971,0.00149804,67638.0,67637.0,0.42762907]
[1729518533459,0.001676,67643.0,67642.0,0.185837]
[1729518533695,0.001676,67643.0,67642.0,0.30679615]
[1729518533924,0.001676,67643.0,67642.0,0.31179615]
[1729518534163,0.001676,67643.0,67642.0,0.33479615]
[1729518534388,0.001676,67643.0,67642.0,0.31179615]
[1729518535339,0.001676,67643.0,67642.0,0.31379615]
[1729518535340,0.002676,67643.0,67642.0,0.31379615]
[1729518535543,0.002676,67643.0,67642.0,0.45386336]
[1729518535938,0.002676,67643.0,67642.0,0.47686336]
[1729518536184,0.003676,67643.0,67642.0,0.48286336]
[1729518536811,0.003676,67643.0,67642.0,0.34279615]
[1729518538207,0.003676,67643.0,67642.0,0.43779615]
[1729518538492,0.003676,67643.0,67642.0,0.34279615]
[1729518539178,0.002676,67643.0,67642.0,0.31379615]
[1729518539379,0.002676,67643.0,67642.0,0.32079615]
[1729518539380,0.003676,67643.0,67642.0,0.32079615]
[1729518539578,0.003676,67643.0,67642.0,0.31879615]
[1729518539790,0.002676,67643.0,67642.0,0.31879615]
[1729518539956,0.001676,67643.0,67642.0,0.31179615]
[1729518540163,0.001676,67643.0,67642.0,0.31379615]
[1729518540164,0.002676,67643.0,67642.0,0.31379615]
[1729518540491,0.002676,67643.0,67642.0,0.168837]
[1729518540985,0.002676,67643.0,67642.0,0.007]
[1729518541233,0.15051,67643.0,67642.0,0.007]
[1729518541446,0.001676,67643.0,67630.0,0.001652]
[1729518541686,0.001676,67643.0,67639.0,0.147842]
[1729518541919,0.001676,67643.0,67642.0,0.014]
[1729518542385,0.001676,67643.0,67642.0,0.0301842]
[1729518542688,0.87740372,67643.0,67642.0,0.014]
[1729518542888,0.147861,67631.0,67630.0,0.22278657]
[1729518543358,0.15895915,67642.0,67630.0,0.001652]
[1729518543359,0.1,67639.0,67630.0,0.001652]
[1729518543557,0.14895915,67638.0,67630.0,0.001652]
[1729518543785,0.147861,67631.0,67630.0,0.001652]
[1729518544015,0.147858,67633.0,67630.0,0.001652]
[1729518544266,0.004,67631.0,67630.0,0.150514]
[1729518544493,0.36898257,67637.0,67631.0,0.295722]
[1729518544722,0.22113457,67637.0,67633.0,0.147856]
[1729518544943,0.36898357,67637.0,67632.0,0.147857]
[1729518545210,0.147851,67636.0,67631.0,0.147859]
[1729518545431,0.104,67638.0,67633.0,0.147856]
[1729518545661,0.147849,67637.0,67631.0,0.147859]
[1729518545870,0.104,67638.0,67631.0,0.147859]
[1729518546083,0.14785,67636.0,67631.0,0.147859]
[1729518546308,0.104,67638.0,67630.0,0.001652]
[1729518546309,0.014,67633.0,67630.0,0.001652]
[1729518546581,0.06377749,67636.0,67631.0,0.148859]
[1729518546791,0.147851,67636.0,67631.0,0.14886]
[1729518547013,0.014,67637.0,67632.0,0.295717]
[1729518547239,0.32113457,67638.0,67632.0,0.147857]
[1729518547240,0.014,67636.0,67632.0,0.147857]
[1729518547484,0.147852,67635.0,67631.0,0.001]
[1729518547724,0.014,67633.0,67632.0,0.147859]
[1729518547949,0.000826,67638.0,67630.0,0.001652]
[1729518548185,0.000826,67638.0,67631.0,0.296722]
[1729518548186,0.014,67636.0,67631.0,0.296722]
[1729518548409,0.014,67636.0,67631.0,0.001]
[1729518548659,0.03,67632.0,67631.0,0.148861]
[1729518548893,0.03,67632.0,67631.0,0.21559926]
[1729518549148,0.177859,67632.0,67631.0,0.001]
[1729518549382,0.177859,67632.0,67630.0,0.001652]
[1729518549383,0.147861,67631.0,67630.0,0.001652]
[1729518550266,0.325718,67632.0,67630.0,0.001652]
[1729518550267,0.03,67632.0,67631.0,0.148861]
[1729518550544,0.03,67632.0,67630.0,0.001652]
[1729518550771,0.007,67631.0,67630.0,0.002652]
[1729518550993,0.007,67631.0,67630.0,0.003652]
[1729518551207,0.03,67632.0,67630.0,0.149514]
[1729518551650,0.03,67632.0,67631.0,0.147861]
[1729518551918,0.03,67632.0,67630.0,0.001652]
[1729518552175,0.03,67632.0,67623.0,0.23113457]
[1729518552176,0.147876,67624.0,67623.0,0.01]
[1729518552411,0.39656615,67624.0,67623.0,0.01]
[1729518552650,0.67246615,67624.0,67623.0,0.01]
[1729518552882,0.66746615,67624.0,67623.0,0.01]
[1729518553129,0.67246615,67624.0,67623.0,0.01]
[1729518553809,0.69046615,67624.0,67623.0,0.012]
[1729518554044,0.536507,67624.0,67623.0,0.012]
[1729518554283,0.522507,67624.0,67623.0,0.011]
[1729518554526,0.536507,67624.0,67623.0,0.012]
[1729518555674,0.532507,67624.0,67623.0,0.011]
[1729518556137,0.69546615,67624.0,67623.0,0.012]
[1729518556610,0.68146615,67624.0,67623.0,0.011]
[1729518556849,0.295723,67631.0,67623.0,0.01]
[1729518556850,0.0761,67631.0,67623.0,0.01]
[1729518557111,0.014,67624.0,67623.0,0.159878]
[1729518557336,0.028,67624.0,67623.0,0.159878]
[1729518557560,0.028,67624.0,67623.0,0.158878]
[1729518557782,0.014,67624.0,67623.0,0.158878]
[1729518557994,0.014,67624.0,67623.0,0.011]
[1729518558537,0.014,67624.0,67623.0,0.01]
[1729518558538,0.147876,67624.0,67623.0,0.01]
[1729518559015,0.147876,67624.0,67623.0,0.01265]
[1729518559250,0.014,67624.0,67623.0,0.01265]
[1729518559513,0.028,67624.0,67623.0,0.160528]
[1729518559721,0.014,67624.0,67623.0,0.38919325]
[1729518559937,0.03,67632.0,67631.0,0.147861]
[1729518560203,0.03,67632.0,67631.0,0.32982015]
[1729518560403,0.22196057,67638.0,67637.0,0.005]
[1729518560618,0.22196057,67638.0,67637.0,0.30180715]
[1729518560866,0.000826,67638.0,67637.0,0.30180715]
[1729518562507,0.000826,67638.0,67637.0,0.147848]
[1729518562945,0.002826,67638.0,67637.0,0.172848]
[1729518563181,0.001826,67638.0,67637.0,0.161848]
[1729518563406,0.000826,67638.0,67637.0,0.147848]
[1729518563622,0.001826,67638.0,67637.0,0.159848]
[1729518563834,0.001826,67638.0,67637.0,0.157848]
[1729518564266,0.001826,67638.0,67637.0,0.147848]
[1729518564267,0.000826,67638.0,67637.0,0.147848]
[1729518564519,0.078626,67638.0,67637.0,0.006]
[1729518564779,0.425771,67638.0,67637.0,0.006]
[1729518564979,0.277926,67638.0,67637.0,0.006]
[1729518565411,0.426771,67638.0,67637.0,0.017]
[1729518565903,0.425771,67638.0,67637.0,0.006]
[1729518566129,0.439771,67638.0,67637.0,0.007]
[1729518566342,0.438771,67638.0,67634.0,0.147854]
[1729518566730,0.438771,67638.0,67631.0,0.295718]
[1729518566731,0.453771,67638.0,67637.0,0.008]
[1729518567163,0.452771,67638.0,67637.0,0.001]
[1729518567540,0.304926,67638.0,67637.0,0.001]
[1729518567746,0.318926,67638.0,67637.0,0.001]
[1729518568250,0.452771,67638.0,67637.0,0.001]
[1729518568471,0.452771,67638.0,67628.0,0.147867]
[1729518568472,0.147852,67635.0,67628.0,0.147867]
[1729518568697,0.276926,67638.0,67624.0,0.22113457]
[1729518568698,0.295696,67637.0,67634.0,0.001]
[1729518568883,0.443557,67635.0,67634.0,0.001]
[1729518569130,0.147859,67632.0,67628.0,0.147867]
[1729518569355,0.147859,67632.0,67624.0,0.22113457]
[1729518569356,0.22113457,67636.0,67624.0,0.147876]
[1729518569615,0.147876,67624.0,67623.0,0.01165]
[1729518569846,0.247876,67624.0,67623.0,0.01165]
[1729518570071,0.295721,67632.0,67623.0,0.01165]
[1729518570297,0.572619,67638.0,67623.0,0.01165]
[1729518570298,0.114,67637.0,67623.0,0.0423916]
[1729518570523,0.33513457,67637.0,67623.0,0.01165]
[1729518570755,0.03,67629.0,67623.0,0.01165]
[1729518570978,0.03,67629.0,67628.0,0.147867]
[1729518571429,0.147868,67628.0,67625.0,0.147873]
[1729518571654,0.177866,67629.0,67624.0,0.295752]
[1729518571897,0.177866,67629.0,67623.0,0.01165]
[1729518571898,0.03,67629.0,67623.0,0.01165]
[1729518572132,0.044,67629.0,67627.0,0.147868]
[1729518572376,0.044,67629.0,67623.0,0.01265]
[1729518572377,0.044,67629.0,67628.0,0.147867]
[1729518572612,0.044,67629.0,67624.0,0.295752]
[1729518572613,0.205866,67629.0,67624.0,0.295752]
[1729518572830,0.1377305,67629.0,67625.0,0.147873]
[1729518573015,0.058,67629.0,67628.0,0.147867]
[1729518573277,0.044,67629.0,67626.0,0.147871]
[1729518573515,0.014,67628.0,67623.0,0.01165]
[1729518573734,0.014,67628.0,67624.0,0.147876]
[1729518573952,0.014,67628.0,67623.0,0.01165]
[1729518574174,0.08705766,67628.0,67624.0,0.147875]
[1729518574402,0.058,67629.0,67624.0,0.147875]
[1729518574622,0.147868,67628.0,67624.0,0.147875]
[1729518574843,0.295739,67627.0,67623.0,0.01165]
[1729518575079,0.03,67629.0,67623.0,0.01165]
[1729518575307,0.147873,67626.0,67623.0,0.01165]
[1729518575574,0.51686957,67628.0,67623.0,0.01165]
[1729518575796,0.440176,67624.0,67623.0,0.01165]
[1729518576036,0.2923,67624.0,67623.0,0.01165]
[1729518576267,0.1923,67624.0,67623.0,0.01165]
[1729518576485,0.1923,67624.0,67623.0,0.159528]
[1729518576921,0.03,67629.0,67623.0,0.307403]
[1729518577137,0.014,67628.0,67627.0,0.147868]
[1729518577417,0.014,67628.0,67625.0,0.295744]
[1729518577418,0.03,67629.0,67626.0,0.295744]
[1729518577641,0.03,67629.0,67628.0,0.147867]
[1729518578299,0.03,67629.0,67627.0,0.147869]
[1729518578523,0.03,67629.0,67624.0,0.295752]
[1729518578760,0.034,67629.0,67626.0,0.147871]
[1729518578978,0.036,67629.0,67627.0,0.147868]
[1729518579197,0.034,67629.0,67627.0,0.147868]
[1729518579420,0.034,67629.0,67624.0,0.295752]
[1729518579643,0.048,67629.0,67625.0,0.295748]
[1729518579865,0.03,67629.0,67626.0,0.14787]
[1729518580114,0.031,67629.0,67627.0,0.147868]
[1729518580344,0.05913,67629.0,67623.0,0.159526]
[1729518580567,0.05913,67629.0,67625.0,0.147874]
[1729518580827,0.031,67629.0,67625.0,0.147874]
[1729518581087,0.031,67629.0,67628.0,0.147867]
[1729518581565,0.044,67629.0,67628.0,0.147867]
[1729518581773,0.058,67629.0,67628.0,0.147867]
[1729518582002,0.044,67629.0,67628.0,0.147867]
[1729518582470,0.046,67629.0,67628.0,0.147867]
[1729518583137,0.044826,67629.0,67628.0,0.147867]
[1729518584082,0.050826,67629.0,67628.0,0.147867]
[1729518584776,0.036826,67629.0,67628.0,0.147867]
[1729518585219,0.032826,67629.0,67627.0,0.147869]
[1729518585424,0.030826,67629.0,67627.0,0.147869]
[1729518585638,0.044826,67629.0,67623.0,0.01165]
[1729518585867,0.058826,67629.0,67625.0,0.147873]
[1729518586090,0.058826,67629.0,67623.0,0.01165]
[1729518586307,0.058826,67629.0,67625.0,0.147873]
[1729518586525,0.058826,67629.0,67623.0,0.01165]
[1729518586752,0.22113457,67627.0,67623.0,0.159527]
[1729518587012,0.1,67624.0,67623.0,0.01165]
[1729518587235,0.24895915,67624.0,67623.0,0.01165]
[1729518587707,0.1,67624.0,67623.0,0.159528]
[1729518587924,0.030826,67629.0,67623.0,0.307406]
[1729518587925,0.044826,67629.0,67623.0,0.307406]
[1729518588198,0.044826,67629.0,67628.0,0.147867]
[1729518588465,0.044826,67629.0,67628.0,0.30182615]
[1729518588945,0.030826,67629.0,67628.0,0.31182615]
[1729518589416,0.030826,67629.0,67628.0,0.32288314]
[1729518589889,0.031826,67629.0,67628.0,0.32288314]
[1729518590138,0.030826,67629.0,67628.0,0.35248314]
[1729518590366,0.031826,67629.0,67628.0,0.32288314]
[1729518590835,0.031826,67629.0,67628.0,0.32388314]
[1729518591298,0.031826,67629.0,67628.0,0.32288314]
[1729518591554,1e-06,67629.0,67628.0,0.78342434]
[1729518591773,1e-06,67629.0,67628.0,0.67998095]
[1729518592000,1e-06,67629.0,67628.0,0.67898095]
[1729518592226,0.000825,67642.0,67628.0,0.67898095]
[1729518592227,0.000825,67642.0,67641.0,0.005]
[1729518592452,0.000825,67642.0,67641.0,0.34392504]
[1729518592725,0.000825,67642.0,67641.0,0.33286805]
[1729518592949,0.000825,67642.0,67641.0,0.31285009]
[1729518593167,0.000825,67642.0,67641.0,0.30179815]
[1729518595002,0.000825,67642.0,67641.0,0.153839]
[1729518595003,0.002825,67642.0,67641.0,0.153839]
[1729518595225,0.002825,67642.0,67641.0,0.150839]
[1729518595226,0.001825,67642.0,67641.0,0.150839]
[1729518595480,0.000825,67642.0,67641.0,0.147839]
[1729518595704,0.001825,67642.0,67641.0,0.151839]
[1729518595931,0.001825,67642.0,67641.0,0.40618975]
[1729518595932,0.000825,67642.0,67641.0,0.40618975]
[1729518596165,0.014825,67642.0,67641.0,0.41618975]
[1729518596392,0.014825,67642.0,67641.0,0.53918975]
[1729518596696,0.000825,67642.0,67641.0,0.53918975]